bitfinex/quotes_SOLUSD_20241116
["timestamp","ask_amount","ask_price","bid_price","bid_amount"]
[1731745564010,13.79005051,218.61,218.57,15.7442]
[1731745564416,13.79005051,218.61,218.58,24.027864]
[1731745565523,13.79005051,218.62,218.58,24.027864]
[1731745566254,6.5792,218.74,218.58,24.027864]
[1731745566255,13.79005051,218.64,218.58,24.027864]
[1731745566415,13.79005051,218.63,218.58,24.027864]
[1731745567730,13.79005051,218.62,218.58,24.027864]
[1731745568716,13.79005051,218.61,218.58,24.027864]
[1731745568914,13.79005051,218.68,218.57,15.7442]
[1731745568915,13.79005051,218.59,218.57,15.7442]
[1731745569118,13.79005051,218.58,218.57,15.7442]
[1731745569413,13.79005051,218.58,218.57,0.12549]
[1731745569625,13.79005051,218.58,218.53,0.12549]
[1731745569852,13.79005051,218.56,218.49,70.5238223]
[1731745570133,13.79005051,218.58,218.52,70.0]
[1731745570908,13.79005051,218.58,218.53,24.027864]
[1731745571228,13.79005051,218.58,218.52,70.0]
[1731745572533,13.79005051,218.58,218.54,0.12549]
[1731745573029,13.79005051,218.56,218.54,0.12549]
[1731745575531,13.79005051,218.58,218.54,0.12549]
[1731745576419,4.5725,218.7,218.55,107.78609913]
[1731745576614,4.5725,218.7,218.54,0.12549]
[1731745576615,13.79005051,218.65,218.59,70.21916462]
[1731745576810,8.83047335,218.66,218.61,0.12549]
[1731745577315,8.83047335,218.64,218.61,0.12549]
[1731745578626,8.83047335,218.65,218.61,0.12549]
[1731745578822,13.79844994,218.64,218.61,0.12549]
[1731745579440,13.79844994,218.62,218.61,0.12549]
[1731745579828,13.79844994,218.62,218.53,70.0]
[1731745580334,13.79844994,218.57,218.53,70.0]
[1731745580922,13.79844994,218.57,218.54,24.027864]
[1731745582123,13.79844994,218.59,218.54,24.027864]
[1731745584532,13.79844994,218.61,218.56,0.12549]
[1731745584840,13.79844994,218.62,218.56,0.12549]
[1731745585717,13.79844994,218.61,218.56,0.12549]
[1731745586822,13.79844994,218.61,218.56,0.25098]
[1731745587426,13.79844994,218.63,218.57,23.776884]
[1731745587624,13.79844994,218.63,218.58,0.25098]
[1731745588437,13.79844994,218.62,218.58,0.25098]
[1731745589154,13.79844994,218.6,218.58,0.25098]
[1731745589845,13.79844994,218.6,218.58,0.12549]
[1731745590647,13.79844994,218.59,218.58,0.12549]
[1731745594749,4.5736,218.65,218.58,0.12549]
[1731745594750,13.79844994,218.6,218.58,0.12549]
[1731745598737,8.83913069,218.59,218.52,23.902374]
[1731745598941,8.83913069,218.55,218.51,23.776884]
[1731745599353,8.83913069,218.55,218.5,15.7212]
[1731745599854,8.83913069,218.53,218.5,15.7212]
[1731745600248,15.71,218.63,218.51,0.25098]
[1731745600452,8.83913069,218.56,218.51,24.027864]
[1731745601760,8.83913069,218.54,218.51,24.027864]
[1731745602352,8.83913069,218.54,218.51,0.12549]
[1731745602537,8.83913069,218.52,218.51,0.25098]
[1731745602738,8.83913069,218.52,218.49,0.5238223]
[1731745604165,8.83913069,218.52,218.5,0.25098]
[1731745604341,8.83913069,218.52,218.5,24.027864]
[1731745610559,4.5741,218.62,218.51,0.09367462]
[1731745610742,8.83913069,218.57,218.51,0.09367462]
[1731745611739,8.83913069,218.53,218.5,0.25098]
[1731745613453,8.83913069,218.53,218.5,24.027864]
[1731745613658,8.83913069,218.52,218.5,24.027864]
[1731745613849,8.83913069,218.53,218.5,24.027864]
[1731745615967,8.83913069,218.54,218.5,24.027864]
[1731745616275,8.83913069,218.53,218.5,24.027864]
[1731745618812,8.83913069,218.54,218.5,24.027864]
[1731745618956,8.83913069,218.53,218.5,24.027864]
[1731745619157,8.83913069,218.54,218.5,24.027864]
[1731745619873,4.5743,218.61,218.5,24.027864]
[1731745620070,8.83913069,218.56,218.5,24.027864]
[1731745621864,8.83913069,218.54,218.5,24.027864]
[1731745626684,15.71,218.63,218.5,24.027864]
[1731745626988,8.83913069,218.54,218.5,24.027864]
[1731745629282,8.83913069,218.56,218.5,24.027864]
[1731745630389,4.5741,218.62,218.5,30.296364]
[1731745630582,7.10076183,218.63,218.53,20.09367462]
[1731745630885,7.10076183,218.65,218.56,24.027864]
[1731745631089,8.83913069,218.62,218.58,24.027864]
[1731745631893,8.83913069,218.6,218.5,6.2685]
[1731745632195,8.83913069,218.56,218.51,0.25098]
[1731745632368,8.83913069,218.54,218.51,0.25098]
[1731745633271,8.83913069,218.54,218.51,24.027864]
[1731745634696,8.83913069,218.56,218.51,24.027864]
[1731745635202,8.83913069,218.56,218.51,0.25098]
[1731745636187,8.83913069,218.54,218.51,0.25098]
[1731745636380,8.83913069,218.54,218.5,20.12549]
[1731745637292,4.5741,218.62,218.5,20.12549]
[1731745637470,8.83913069,218.56,218.5,20.12549]
[1731745637671,8.83913069,218.56,218.51,23.902374]
[1731745637888,8.83913069,218.56,218.52,0.12549]
[1731745638091,8.83913069,218.54,218.52,0.12549]
[1731745638868,8.83913069,218.58,218.52,0.12549]
[1731745639677,8.83913069,218.56,218.52,0.12549]
[1731745651487,8.83913069,218.56,218.51,0.25098]
[1731745659892,4.5743,218.61,218.51,0.25098]
[1731745660086,8.83913069,218.58,218.51,0.25098]
[1731745660289,4.5743,218.61,218.51,0.25098]
[1731745660510,8.83913069,218.58,218.51,0.25098]
[1731745666109,7.10076183,218.64,218.56,32.61601469]
[1731745666286,8.83913069,218.64,218.57,0.25098]
[1731745668216,8.83913069,218.6,218.55,0.12549]
[1731745670005,8.83913069,218.63,218.56,8.83913069]
[1731745670403,8.83913069,218.63,218.57,24.027864]
[1731745671116,8.83913069,218.63,218.53,76.4771]
[1731745671117,8.83913069,218.59,218.53,6.4771]
[1731745671332,8.83913069,218.59,218.54,24.027864]
[1731745672020,8.83913069,218.59,218.5,70.0]
[1731745672199,8.83913069,218.54,218.5,70.0]
[1731745672399,8.83913069,218.52,218.49,35.3769103]
[1731745672623,8.83913069,218.51,218.49,0.5238223]
[1731745672803,8.83913069,218.52,218.49,0.5238223]
[1731745673689,8.83913069,218.52,218.5,0.12549]
[1731745674101,8.83913069,218.52,218.5,23.902374]
[1731745676323,8.83913069,218.53,218.5,23.902374]
[1731745677012,8.83913069,218.52,218.5,23.902374]
[1731745677322,8.83913069,218.51,218.5,23.902374]
[1731745679308,8.83913069,218.53,218.5,23.902374]
[1731745679507,8.83913069,218.52,218.5,23.902374]
[1731745679822,4.5747,218.59,218.5,23.776884]
[1731745679823,8.83913069,218.51,218.5,23.776884]
[1731745680017,8.83913069,218.51,218.5,23.902374]
[1731745680628,8.83913069,218.51,218.5,0.12549]
[1731745681126,8.83913069,218.54,218.51,0.12549]
[1731745681307,8.83913069,218.53,218.51,0.12549]
[1731745681926,8.83913069,218.53,218.5,0.12549]
[1731745683224,8.83913069,218.53,218.5,23.902374]
[1731745683430,4.5751,218.58,218.5,23.902374]
[1731745683623,8.83913069,218.51,218.5,23.902374]
[1731745684434,8.83913069,218.52,218.5,23.902374]
[1731745685425,8.83913069,218.51,218.5,0.12549]
[1731745685835,8.83913069,218.52,218.5,0.12549]
[1731745686636,8.83913069,218.53,218.5,0.12549]
[1731745687130,8.83913069,218.52,218.5,0.12549]
[1731745687331,8.83913069,218.51,218.5,0.12549]
[1731745687510,8.83913069,218.51,218.49,0.5238223]
[1731745687925,8.83913069,218.52,218.49,0.5238223]
[1731745688331,8.83913069,218.5,218.49,0.5238223]
[1731745688830,13.41573069,218.5,218.49,0.5238223]
[1731745689007,8.83913069,218.5,218.49,0.5238223]
[1731745689206,4.5759,218.54,218.49,0.5238223]
[1731745689412,8.83913069,218.51,218.49,0.5238223]
[1731745689645,4.5759,218.54,218.49,0.5238223]
[1731745689807,8.83913069,218.51,218.49,0.5238223]
[1731745690543,8.83913069,218.52,218.49,0.5238223]
[1731745692228,4.5753,218.57,218.5,0.12549]
[1731745692420,8.83913069,218.55,218.5,23.902374]
[1731745692929,8.83913069,218.54,218.5,23.902374]
[1731745694712,8.83913069,218.55,218.5,23.902374]
[1731745696130,8.83913069,218.55,218.5,0.12549]
[1731745696331,15.7764,218.6,218.49,0.5238223]
[1731745696332,8.83913069,218.53,218.49,0.5238223]
[1731745696534,8.83913069,218.55,218.5,23.902374]
[1731745697642,8.83913069,218.53,218.49,0.5238223]
[1731745698240,15.7764,218.6,218.5,24.027864]
[1731745698536,8.83913069,218.56,218.5,24.027864]
[1731745699640,15.7764,218.6,218.5,24.027864]
[1731745699937,8.83913069,218.61,218.53,52.86699469]
[1731745700129,8.83913069,218.61,218.52,70.0]
[1731745700130,8.83913069,218.63,218.56,52.86699469]
[1731745700633,8.83913069,218.64,218.56,24.027864]
[1731745700824,8.83913069,218.63,218.56,24.027864]
[1731745701026,4.5734,218.66,218.56,32.86699469]
[1731745701227,8.83913069,218.65,218.57,8.83913069]
[1731745701533,7.10076183,218.7,218.63,8.83913069]
[1731745701841,7.10076183,218.7,218.64,32.74150469]
[1731745702051,15.93989252,218.71,218.64,32.74150469]
[1731745702218,8.83913069,218.71,218.64,32.74150469]
[1731745703921,16.28696739,218.73,218.64,32.74150469]
[1731745704219,9.18620556,218.73,218.67,0.12549]
[1731745704425,8.83913069,218.73,218.67,0.12549]
[1731745704946,8.83913069,218.71,218.61,70.0]
[1731745705145,11.67236183,218.74,218.55,15.4866]
[1731745705146,8.83913069,218.67,218.59,8.83913069]
[1731745705642,8.83913069,218.65,218.57,8.83913069]
[1731745706424,8.83913069,218.65,218.56,24.027864]
[1731745706640,8.83913069,218.65,218.58,24.027864]
[1731745707846,8.83913069,218.65,218.59,8.83913069]
[1731745708044,7.10076183,218.72,218.6,23.902374]
[1731745708045,4.5726,218.7,218.6,23.902374]
[1731745708345,8.83913069,218.66,218.6,23.902374]
[1731745710654,8.83913069,218.64,218.58,0.12549]
[1731745710945,20.116,218.71,218.57,0.25098]
[1731745710946,8.83913069,218.62,218.57,0.25098]
[1731745713453,8.83913069,218.62,218.57,0.12549]
[1731745713951,8.83913069,218.62,218.56,23.776884]
[1731745715848,8.83913069,218.62,218.57,0.25098]
[1731745716047,15.5438,218.71,218.57,29.09011069]
[1731745716253,4.5725,218.7,218.57,9.09011069]
[1731745716544,8.83913069,218.66,218.59,0.25098]
[1731745719052,7.10076183,218.72,218.6,78.93280531]
[1731745719257,8.83913069,218.69,218.64,0.12549]
[1731745719439,8.83913069,218.7,218.64,0.12549]
[1731745719750,8.83913069,218.68,218.62,23.776884]
[1731745719959,8.83913069,218.66,218.62,0.12549]
[1731745720149,8.83913069,218.63,218.57,24.027864]
[1731745720340,8.83913069,218.62,218.57,0.12549]
[1731745720540,8.83913069,218.62,218.55,24.22573069]
[1731745720936,8.83913069,218.62,218.55,15.3866]
[1731745721143,8.83913069,218.61,218.55,15.3866]
[1731745721471,4.5734,218.66,218.55,24.22573069]
[1731745721650,8.83913069,218.62,218.56,24.027864]
[1731745721961,8.83913069,218.61,218.56,24.027864]
[1731745722556,8.83913069,218.63,218.56,24.027864]
[1731745726351,20.0,218.72,218.56,32.86699469]
[1731745726663,8.83913069,218.68,218.61,0.25098]
[1731745726854,8.83913069,218.68,218.61,24.027864]
[1731745729169,8.83913069,218.68,218.63,24.027864]
[1731745731165,8.83913069,218.7,218.63,24.027864]
[1731745734365,8.83913069,218.69,218.63,24.027864]
[1731745734978,8.83913069,218.7,218.63,24.027864]
[1731745735554,8.83913069,218.68,218.63,0.25098]
[1731745735762,8.83913069,218.68,218.64,23.776884]
[1731745736270,8.83913069,218.69,218.64,23.776884]
[1731745737456,8.83913069,218.68,218.64,23.776884]
[1731745737854,8.83913069,218.69,218.64,23.776884]
[1731745740746,8.83913069,218.67,218.63,15.0062]
[1731745740948,8.83913069,218.67,218.59,24.027864]
[1731745741169,4.5716,218.74,218.61,70.0]
[1731745741472,8.83913069,218.69,218.61,78.83913069]
[1731745742249,8.83913069,218.67,218.62,0.25098]
[1731745742444,8.83913069,218.67,218.61,0.25098]
[1731745742645,8.83913069,218.67,218.61,0.12549]
[1731745742848,0.09367462,218.73,218.6,0.12549]
[1731745743064,8.83913069,218.67,218.6,9.09011069]
[1731745743249,8.83913069,218.69,218.61,23.776884]
[1731745743449,8.83913069,218.69,218.62,0.25098]
[1731745746072,8.83913069,218.69,218.62,9.09011069]
[1731745746375,8.83913069,218.73,218.66,8.96462069]
[1731745746557,13.70856183,218.83,218.7,0.12549]
[1731745746761,8.83913069,218.77,218.71,0.12549]
[1731745748468,4.5704,218.8,218.71,0.12549]
[1731745748661,8.83913069,218.77,218.71,0.12549]
[1731745750193,11.4238,218.85,218.72,23.902374]
[1731745750194,8.83913069,218.8,218.72,23.902374]
[1731745750489,8.83913069,218.8,218.73,0.12549]
[1731745751186,6.7078,218.88,218.73,0.12549]
[1731745751187,4.5699,218.83,218.74,16.5967]
[1731745751369,6.6078,218.88,218.74,16.5967]
[1731745751370,6.6078,218.88,218.75,24.12153862]
[1731745751692,8.83913069,218.83,218.75,32.96066931]
[1731745751866,8.83913069,218.79,218.74,16.5967]
[1731745753685,8.83913069,218.75,218.7,6.6642]
[1731745753925,8.83913069,218.72,218.69,16.4882]
[1731745754071,8.83913069,218.7,218.65,6.254]
[1731745755199,6.6655,218.8,218.66,0.09367462]
[1731745755376,8.83913069,218.73,218.66,0.09367462]
[1731745756069,6.6655,218.8,218.69,24.027864]
[1731745756268,4.5701,218.81,218.69,24.027864]
[1731745756475,8.83913069,218.76,218.69,24.027864]
[1731745758396,8.83913069,218.74,218.69,24.027864]
[1731745760294,4.66357462,218.82,218.69,24.027864]
[1731745760485,8.83913069,218.75,218.69,24.027864]
[1731745764098,8.83913069,218.74,218.69,24.027864]
[1731745766297,8.83913069,218.72,218.65,6.254]
[1731745766600,8.83913069,218.68,218.62,70.0]
[1731745767990,4.5708,218.78,218.65,0.25098]
[1731745768192,8.83913069,218.7,218.65,0.25098]
[1731745768391,4.5699,218.82,218.66,0.09367462]
[1731745768605,8.83913069,218.73,218.65,94.027864]
[1731745768931,8.83913069,218.73,218.65,102.86699469]
[1731745769474,8.83913069,218.71,218.65,94.027864]
[1731745770588,8.83913069,218.71,218.65,24.027864]
[1731745771179,35.35652276,218.79,218.65,24.027864]
[1731745771180,8.83913069,218.7,218.65,0.12549]
[1731745774208,8.83913069,218.7,218.66,0.12549]
[1731745774394,8.83913069,218.72,218.66,0.12549]
[1731745774902,8.83913069,218.73,218.66,0.12549]
[1731745780090,8.83913069,218.73,218.67,0.21916462]
[1731745780306,8.83913069,218.75,218.68,0.25098]
[1731745782099,16.4813,218.83,218.71,24.027864]
[1731745782301,8.83913069,218.79,218.71,24.027864]
[1731745783411,16.4813,218.83,218.67,6.3446]
[1731745783412,8.83913069,218.75,218.69,23.902374]
[1731745783616,8.83913069,218.73,218.67,6.3446]
[1731745783816,8.83913069,218.71,218.64,95.32733069]
[1731745784041,35.35652276,218.79,218.64,16.4882]
[1731745784042,8.83913069,218.7,218.64,16.4882]
[1731745784698,23.87055862,218.78,218.64,16.4882]
[1731745784891,8.83913069,218.7,218.64,16.4882]
[1731745785295,23.87055862,218.78,218.62,6.3446]
[1731745785296,8.83913069,218.68,218.62,6.3446]
[1731745786422,8.83913069,218.68,218.63,0.12549]
[1731745787719,8.83913069,218.67,218.63,0.12549]
[1731745789415,8.83913069,218.68,218.63,0.12549]
[1731745790432,8.83913069,218.67,218.63,0.12549]
[1731745790819,8.83913069,218.65,218.59,16.3744]
[1731745791517,8.83913069,218.63,218.59,16.3744]
[1731745792131,8.83913069,218.62,218.57,6.3446]
[1731745792324,8.83913069,218.61,218.54,16.1948]
[1731745793243,8.83913069,218.61,218.55,0.25098]
[1731745793435,8.83913069,218.6,218.54,16.1948]
[1731745793618,8.83913069,218.58,218.54,16.1948]
[1731745795119,49.10372995,218.68,218.55,0.12549]
[1731745795120,8.83913069,218.6,218.55,0.12549]
[1731745795527,8.83913069,218.62,218.55,0.25098]
[1731745795721,42.02132276,218.68,218.55,0.25098]
[1731745795722,6.6648,218.68,218.57,0.25098]
[1731745795940,8.83913069,218.62,218.57,0.25098]
[1731745797743,8.83913069,218.61,218.57,0.25098]
[1731745798254,8.83913069,218.6,218.55,0.12549]
[1731745798560,8.83913069,218.6,218.56,0.12549]
[1731745798839,11.2377,218.68,218.56,0.12549]
[1731745799041,8.83913069,218.6,218.56,0.12549]
[1731745801325,8.83913069,218.61,218.56,0.12549]
[1731745801944,8.83913069,218.62,218.56,0.12549]
[1731745804625,8.83913069,218.61,218.56,0.12549]
[1731745805026,4.5727,218.69,218.58,0.12549]
[1731745805231,8.83913069,218.64,218.58,0.12549]
[1731745808534,0.09367462,218.71,218.58,0.12549]
[1731745808725,8.83913069,218.65,218.58,0.12549]
[1731745809056,4.66587462,218.71,218.58,0.12549]
[1731745809239,8.83913069,218.65,218.58,0.12549]
[1731745809548,8.83913069,218.65,218.58,8.96462069]
[1731745809732,8.83913069,218.65,218.59,0.12549]
[1731745810925,8.83913069,218.67,218.59,8.96462069]
[1731745811147,8.83913069,218.67,218.6,0.12549]
[1731745813645,8.83913069,218.69,218.62,8.96462069]
[1731745813972,8.83913069,218.69,218.63,0.12549]
[1731745815931,4.572,218.72,218.63,0.12549]
[1731745815932,8.83913069,218.7,218.63,0.12549]
[1731745816440,4.5717,218.74,218.64,0.12549]
[1731745816645,8.83913069,218.74,218.67,0.25098]
[1731745818540,15.5387,218.79,218.69,0.25098]
[1731745818852,8.83913069,218.77,218.69,0.25098]
[1731745820561,4.5704,218.8,218.69,0.25098]
[1731745820850,8.83913069,218.78,218.71,0.25098]
[1731745821758,4.5695,218.84,218.73,0.25098]
[1731745821941,8.83913069,218.81,218.73,0.25098]
[1731745825154,28.43965862,218.86,218.74,8.83913069]
[1731745825364,7.08124214,218.87,218.78,0.25098]
[1731745825561,15.2891,218.96,218.86,8.83913069]
[1731745825864,8.83913069,218.94,218.87,0.25098]
[1731745826246,8.83913069,218.95,218.87,0.25098]
[1731745826553,8.83913069,218.95,218.88,8.83913069]
[1731745826740,8.83913069,218.95,218.89,0.12549]
[1731745827365,4.5664,218.99,218.89,0.12549]
[1731745827537,8.83913069,218.96,218.89,0.12549]
[1731745827935,4.5664,218.99,218.89,0.12549]
[1731745828135,8.83913069,218.98,218.89,8.96462069]
[1731745829148,8.83913069,218.98,218.91,8.83913069]
[1731745830449,4.566,219.01,218.9,0.25098]
[1731745830654,8.83913069,218.96,218.9,0.25098]
[1731745830855,8.83913069,218.98,218.9,0.25098]
[1731745831363,8.83913069,218.98,218.91,8.83913069]
[1731745831542,8.83913069,219.0,218.92,0.25098]
[1731745834243,8.83913069,218.98,218.92,0.25098]
[1731745835062,4.65877462,219.05,218.92,0.25098]
[1731745835366,34.2286,219.12,219.01,8.83913069]
[1731745835367,8.83913069,219.09,219.01,8.83913069]
[1731745835567,10.5987,219.13,219.02,0.25098]
[1731745835748,16.621,219.17,219.02,0.25098]
[1731745836078,8.83913069,219.1,219.02,0.25098]
[1731745836743,4.5634,219.14,219.03,8.83913069]
[1731745836966,8.83913069,219.11,219.04,0.25098]
[1731745837169,8.83913069,219.09,218.99,23.776884]
[1731745837358,8.83913069,219.09,219.02,0.25098]
[1731745838266,4.563,219.15,219.04,23.902374]
[1731745838568,16.621,219.17,219.04,23.902374]
[1731745838569,8.83913069,219.12,219.04,32.86699469]
[1731745838761,13.74123354,219.12,219.05,13.74123354]
[1731745838966,13.74123354,219.12,219.06,0.25098]
[1731745840469,13.74123354,219.14,219.06,0.25098]
[1731745843870,4.5631,219.15,219.06,0.25098]
[1731745844067,13.74123354,219.13,219.06,0.25098]
[1731745844962,13.74123354,219.09,219.04,0.25098]
[1731745849282,13.74123354,219.1,219.04,0.25098]
[1731745849580,13.74123354,219.13,219.06,0.25098]
[1731745850781,13.74123354,219.12,219.06,0.25098]
[1731745851080,13.74123354,219.13,219.06,13.74123354]
[1731745851273,13.74123354,219.13,219.07,0.25098]
[1731745852075,13.74123354,219.13,219.05,13.99221354]
[1731745853266,13.74123354,219.19,219.12,0.25098]
[1731745853452,13.74123354,219.19,219.12,16.24618]
[1731745854271,13.74123354,219.17,219.12,16.24618]
[1731745854481,13.74123354,219.15,219.12,15.9952]
[1731745856277,13.74123354,219.17,219.12,15.9952]
[1731745856489,13.74123354,219.17,219.13,0.25098]
[1731745858677,13.74123354,219.17,219.13,0.12549]
[1731745858879,13.74123354,219.15,219.12,15.9952]
[1731745859182,4.5616,219.22,219.12,15.9952]
[1731745859183,13.74123354,219.13,219.12,15.9952]
[1731745859587,13.74123354,219.13,219.07,40.11673862]
[1731745859978,13.74123354,219.13,219.07,40.023064]
[1731745860668,13.74123354,219.13,219.07,16.12069]
[1731745860871,13.74123354,219.1,219.07,15.9952]
[1731745861257,13.74123354,219.09,219.03,6.074]
[1731745862763,13.74123354,219.09,219.04,0.25098]
[1731745863689,13.74123354,219.08,219.04,0.25098]
[1731745865395,13.74123354,219.1,219.04,24.027864]
[1731745865769,13.74123354,219.11,219.04,24.027864]
[1731745866772,13.74123354,219.1,219.04,24.027864]
[1731745867076,13.74123354,219.09,219.04,24.027864]
[1731745867696,13.74123354,219.07,219.02,24.027864]
[1731745867872,13.74123354,219.06,219.02,24.027864]
[1731745868071,13.74123354,219.05,219.02,0.25098]
[1731745868793,13.74123354,219.05,219.01,15.9952]
[1731745869010,13.74123354,219.03,219.01,15.9952]
[1731745869970,13.74123354,219.03,218.98,0.12549]
[1731745870172,13.74123354,219.02,218.98,0.12549]
[1731745870394,13.74123354,219.02,218.96,0.12549]
[1731745870698,19.6137,219.11,218.95,15.9952]
[1731745870699,13.74123354,218.98,218.95,34.245189]
[1731745870875,13.74123354,218.97,218.9,83.74123354]
[1731745871077,4.5645,219.08,218.9,15.9952]
[1731745871078,13.74123354,218.96,218.9,15.9952]
[1731745871773,13.74123354,218.99,218.92,13.74123354]
[1731745871978,13.74123354,219.0,218.92,13.74123354]
[1731745872193,13.74123354,219.0,218.93,0.09367462]
[1731745872794,13.74123354,219.0,218.94,0.12549]
[1731745873005,13.74123354,219.0,218.94,0.25098]
[1731745874195,13.74123354,219.01,218.95,0.21916462]
[1731745874492,13.74123354,219.01,218.96,0.25098]
[1731745875285,13.74123354,219.0,218.95,0.25098]
[1731745875576,4.5643,219.09,218.94,0.25098]
[1731745875577,13.74123354,218.98,218.94,0.25098]
[1731745875799,13.74123354,218.98,218.93,0.25098]
[1731745875976,13.74123354,218.98,218.92,0.25098]
[1731745876182,13.74123354,218.99,218.92,0.25098]
[1731745876896,13.74123354,218.97,218.92,0.25098]
[1731745877086,13.74123354,218.96,218.92,0.25098]
[1731745877285,13.74123354,218.96,218.91,0.25098]
[1731745878798,13.74123354,218.97,218.91,0.25098]
[1731745880576,13.74123354,218.99,218.92,0.09367462]
[1731745880786,13.74123354,219.0,218.93,24.027864]
[1731745881301,13.74123354,218.99,218.93,24.027864]
[1731745881678,13.74123354,218.94,218.9,15.9952]
[1731745881880,13.74123354,218.92,218.9,15.9952]
[1731745882082,13.74123354,218.91,218.88,6.4996]
[1731745882288,13.74123354,218.91,218.85,15.4313]
[1731745882590,13.74123354,218.91,218.86,0.09367462]
[1731745882810,13.74123354,218.91,218.85,15.4313]
[1731745882983,13.74123354,218.89,218.85,15.4313]
[1731745884718,13.74123354,218.89,218.86,0.25098]
[1731745886196,13.74123354,218.87,218.8,15.4313]
[1731745886402,0.2,218.96,218.8,15.4313]
[1731745886403,13.74123354,218.84,218.8,15.4313]
[1731745886785,13.74123354,218.83,218.8,15.4313]
[1731745886989,13.74123354,218.81,218.77,13.741234]
[1731745887197,13.74123354,218.83,218.77,13.741234]
[1731745887911,13.74123354,218.83,218.76,83.74123354]
[1731745888087,13.74123354,218.83,218.77,0.21916462]
[1731745888493,13.74123354,218.83,218.78,0.12549]
[1731745889044,13.74123354,218.83,218.78,0.25098]
[1731745891486,13.74123354,218.85,218.78,0.25098]
[1731745892779,8.81664134,218.84,218.78,0.25098]
[1731745895984,8.81664134,218.86,218.79,32.81268996]
[1731745896285,4.5673,218.95,218.84,0.25098]
[1731745896499,8.81664134,218.94,218.88,0.25098]
[1731745896704,8.81664134,218.94,218.88,24.027864]
[1731745896885,13.76210028,218.95,218.88,24.027864]
[1731745897798,13.76210028,218.95,218.88,0.25098]
[1731745899583,13.76210028,219.01,218.93,24.12153862]
[1731745899783,13.76210028,219.01,218.93,0.25098]
[1731745899983,13.76210028,218.97,218.93,0.25098]
[1731745900178,13.76210028,218.97,218.91,0.25098]
[1731745900625,13.76210028,218.97,218.89,24.12153862]
[1731745902321,13.76210028,218.95,218.89,0.25098]
[1731745902921,13.76210028,218.95,218.88,13.76210028]
[1731745904120,13.76210028,218.95,218.89,0.25098]
[1731745905125,13.03912221,218.95,218.87,24.12153862]
[1731745905434,13.76210028,218.97,218.9,0.12549]
[1731745905614,13.76210028,218.97,218.9,0.25098]
[1731745905926,13.76210028,218.98,218.9,0.25098]
[1731745906428,13.76210028,218.98,218.93,0.09367462]
[1731745906609,13.76210028,218.98,218.92,0.25098]
[1731745907231,13.76210028,218.98,218.91,0.25098]
[1731745907433,4.566,219.01,218.9,23.776884]
[1731745907434,13.76210028,218.96,218.9,0.25098]
[1731745908522,23.776884,219.04,218.91,13.76210028]
[1731745908840,13.76210028,218.98,218.92,0.25098]
[1731745909210,13.76210028,218.99,218.92,0.25098]
[1731745910330,11.6547207,219.06,218.95,23.87055862]
[1731745910535,13.76210028,219.03,218.96,0.25098]
[1731745910714,13.76210028,219.01,218.96,0.25098]
[1731745910915,4.5651,219.06,218.95,0.12549]
[1731745911111,13.76210028,219.0,218.95,0.25098]
[1731745912632,4.5649,219.06,218.95,0.25098]
[1731745912839,13.76210028,219.0,218.95,0.25098]
[1731745913139,13.76210028,219.0,218.94,16.0189]
[1731745913429,13.76210028,218.98,218.94,16.0189]
[1731745913632,13.76210028,218.95,218.86,29.18710028]
[1731745913839,13.76210028,218.93,218.86,29.18710028]
[1731745914721,13.76210028,218.93,218.86,15.425]
[1731745915034,13.76210028,218.93,218.87,0.25098]
[1731745915342,4.5667,218.98,218.87,0.25098]
[1731745915343,13.76210028,218.95,218.87,0.25098]
[1731745916044,13.76210028,218.93,218.87,0.25098]
[1731745918835,13.86210028,219.01,218.87,0.25098]
[1731745918836,8.80955011,218.94,218.87,0.25098]
[1731745919351,8.80955011,218.9,218.81,15.425]
[1731745919550,8.80955011,218.9,218.81,24.23455011]
[1731745920742,8.80955011,218.88,218.82,0.25098]
[1731745920946,8.80955011,218.88,218.82,0.12549]
[1731745921849,8.80955011,218.88,218.77,70.0]
[1731745922037,8.80955011,218.84,218.77,8.80955011]
[1731745922733,0.1,218.93,218.78,0.09367462]
[1731745922940,13.77489154,218.86,218.78,13.86856616]
[1731745923146,13.77489154,218.88,218.81,0.09367462]
[1731745923466,13.77489154,218.89,218.81,13.86856616]
[1731745923752,13.77489154,218.88,218.82,0.12549]
[1731745924051,13.77489154,218.87,218.82,0.12549]